{"text_format":"1","workbook":"xlsx","n_sheets":4,"sheets":["Instructions","Applicant Input","IB-12 Targets","DropDownLists"],"not_rendered":{"charts":0,"images":4,"macros":1,"external_links":1,"defined_names":2,"comments":1,"pivot_tables":0},"unopened":[],"bounds":{"document_bytes":16777216,"sheet_cells":100000,"rows_first":2000,"rows_last":500,"rows_between":2000,"halvings":0,"cell_chars":16384,"cell_head_chars":4096},"cells_cut":0,"cells_raw":0,"read":"whole","date_system":"1900"}

{"sheet":"Instructions","index":0,"n_rows":32,"n_cols":2,"rows_kept":32,"cut":false,"hidden":false,"merged":[[0,0,0,11],[1,0,6,0],[1,1,6,11],[7,0,12,0],[7,1,12,11],[13,0,18,0],[13,1,18,11],[19,0,24,0],[19,1,24,11],[25,0,30,0],[25,1,30,11],[31,0,36,0],[31,1,36,11]]}
["INSTRUCTIONS"]
[1,"Select applicable highlighted cell in the \"Performance Target Achieved\" column and choose the appropriate score in the dropdown menu according to the \"Available Performance Targets\" column description. Please note that only one score can be selected per cell. To clear the cell if the incorrect score has been chosen, select the applicable cell dropdown menu and choose the blank line to start again."]
[]
[]
[]
[]
[]
[2,"The \"Points Awarded\" column will show an automatic tally based on the performance target selected. This score is consistent with the associated Sustainability Metrics Program Guidebook document. Please refer to the \"Final Score\" cell at the top and bottom of the spreadsheet to determine the total points awarded."]
[]
[]
[]
[]
[]
[3,"Select applicable highlighted cell in the \"Verification Document\" column and choose the appropriate documents that display and provides rationale on the anticipated performance target. The listed verification documents are consistent with the associated Sustainability Metrics Program Guidebook document. Please note that multiple verification documents can be selected within this cell. To clear the cell if the incorrect document has been chosen, select the applicable cell dropdown menu and choose the blank line to start again."]
[]
[]
[]
[]
[]
[4,"Applicants can provide additional information in the \"Comments\" column by selecting the applicable cell. Additional information can include: reference to selected verification document, verification document page number, rationale for selection, and/or the name of the chosen \"Other\" document if selected."]
[]
[]
[]
[]
[]
[5,"Once the document is complete and the minimum Bronze Performance Level has been achieved, the Excel file can be sent to the City File Planner for review prior to formal submission."]
[]
[]
[]
[]
[]
[6,"Once the document has been reviewed and a Bronze Performance Level has been verified by City Staff, the Excel file can be uploaded to ePLAN under the \"Planning - Documents\" folder. Please also include the completed Sustainability Checklist on the site plan drawing."]

{"sheet":"Applicant Input","index":1,"n_rows":132,"n_cols":24,"rows_kept":132,"cut":false,"hidden":false,"merged":[[114,20,115,20],[70,20,71,20],[72,20,74,20],[75,20,76,20],[77,20,78,20],[91,20,92,20],[94,20,95,20],[97,20,98,20],[103,20,105,20],[42,23,43,23],[44,23,47,23],[50,23,51,23],[53,23,54,23],[55,23,57,23],[58,23,59,23],[60,23,61,23],[87,23,88,23],[89,23,90,23],[62,23,66,23],[67,23,68,23],[75,23,76,23],[77,23,78,23],[81,23,84,23],[85,23,86,23],[42,20,43,20],[44,20,45,20],[50,20,51,20],[53,20,54,20],[58,20,59,20],[60,20,61,20],[67,20,68,20],[91,22,92,22],[60,22,61,22],[58,22,59,22],[50,22,51,22],[67,19,68,19],[106,2,107,2],[108,2,110,2],[116,2,118,2],[120,2,122,2],[120,23,122,23],[94,19,95,19],[97,16,98,16],[96,2,98,2],[99,2,100,2],[114,2,115,2],[114,22,115,22],[70,22,71,22],[72,22,74,22],[75,22,76,22],[77,22,78,22],[67,2,68,2],[70,2,71,2],[67,16,68,16],[67,17,68,17],[67,18,68,18],[94,16,95,16],[101,23,105,23],[91,23,92,23],[126,2,128,2],[77,2,78,2],[97,19,98,19],[72,0,74,0],[97,1,98,1],[94,2,95,2],[91,16,92,16],[114,16,115,16],[114,17,115,17],[114,18,115,18],[114,1,115,1],[114,19,115,19],[103,1,105,1],[103,16,105,16],[103,17,105,17],[103,18,105,18],[101,2,105,2],[103,19,105,19],[101,1,102,1],[111,2,113,2],[97,17,98,17],[97,18,98,18],[77,0,78,0],[94,17,95,17],[126,0,128,0],[81,0,84,0],[85,0,86,0],[87,0,88,0],[89,0,90,0],[91,0,92,0],[94,0,95,0],[96,0,98,0],[99,0,100,0],[101,0,105,0],[120,0,122,0],[106,0,107,0],[108,0,113,0],[114,0,115,0],[116,0,118,0],[50,18,51,18],[53,18,54,18],[55,18,56,18],[44,18,45,18],[27,18,28,18],[18,18,20,18],[29,18,30,18],[42,18,43,18],[124,0,125,0],[94,1,95,1],[124,2,125,2],[94,18,95,18],[91,17,92,17],[14,22,15,22],[18,22,20,22],[21,22,22,22],[27,22,28,22],[32,22,33,22],[42,22,43,22],[44,22,45,22],[37,22,38,22],[42,2,43,2],[14,21,15,21],[18,19,20,19],[21,19,22,19],[29,17,30,17],[14,16,15,16],[18,16,20,16],[21,16,22,16],[14,19,15,19],[14,18,15,18],[21,17,22,17],[21,18,22,18],[18,17,20,17],[14,20,15,20],[18,20,20,20],[21,20,22,20],[42,0,43,0],[44,0,47,0],[50,0,51,0],[53,0,54,0],[55,0,57,0],[50,2,51,2],[70,1,71,1],[72,2,74,2],[75,2,76,2],[58,0,59,0],[60,0,61,0],[62,0,66,0],[67,0,68,0],[70,0,71,0],[42,1,43,1],[50,1,51,1],[44,1,45,1],[75,1,76,1],[75,0,76,0],[60,1,61,1],[58,1,59,1],[67,1,68,1],[55,1,56,1],[72,19,74,19],[91,19,92,19],[75,19,76,19],[77,16,78,16],[77,17,78,17],[75,16,76,16],[70,16,71,16],[70,17,71,17],[70,18,71,18],[72,18,74,18],[34,17,36,17],[32,17,33,17],[60,2,61,2],[60,16,61,16],[42,17,43,17],[53,2,54,2],[44,17,45,17],[50,17,51,17],[70,19,71,19],[58,19,59,19],[60,17,61,17],[60,18,61,18],[34,19,36,19],[50,16,51,16],[50,19,51,19],[42,16,43,16],[44,16,45,16],[44,19,45,19],[42,19,43,19],[53,16,54,16],[60,19,61,19],[53,19,54,19],[55,16,56,16],[58,18,59,18],[14,0,15,0],[14,1,15,1],[27,1,28,1],[32,1,33,1],[34,1,36,1],[14,2,15,2],[29,1,30,1],[27,16,28,16],[32,16,33,16],[29,16,30,16],[34,2,36,2],[27,2,30,2],[27,0,30,0],[17,0,22,0],[23,0,26,0],[32,0,33,0],[34,0,36,0],[18,1,20,1],[21,1,22,1],[32,2,33,2],[34,16,36,16],[37,0,39,0],[72,1,74,1],[91,18,92,18],[91,1,92,1],[77,18,78,18],[77,19,78,19],[85,17,86,17],[85,18,86,18],[85,16,86,16],[85,1,86,1],[77,1,78,1],[81,2,84,2],[85,2,86,2],[87,2,88,2],[89,2,90,2],[91,2,92,2],[87,16,88,16],[87,1,88,1],[72,16,74,16],[53,1,54,1],[75,18,76,18],[75,17,76,17],[87,18,88,18],[87,17,88,17],[14,17,15,17],[32,20,33,20],[34,20,36,20],[34,18,36,18],[32,18,33,18],[27,19,28,19],[32,19,33,19],[29,19,30,19],[2,1,4,1],[2,2,4,16],[6,1,8,1],[6,2,8,16],[2,18,4,19],[2,20,4,23],[6,18,8,23],[14,23,15,23],[17,23,22,23],[23,23,26,23],[27,23,30,23],[34,23,36,23],[32,23,33,23],[27,20,28,20],[29,20,30,20],[27,17,28,17],[124,23,125,23],[126,23,128,23],[17,2,22,2],[23,2,26,2],[37,2,39,2],[44,2,47,2],[55,2,57,2],[62,2,66,2],[94,23,95,23],[96,23,98,23],[99,23,100,23],[106,23,107,23],[108,23,113,23],[114,23,115,23],[116,23,118,23],[70,23,71,23],[72,23,74,23],[37,23,39,23],[72,17,74,17],[58,16,59,16],[58,17,59,17],[53,17,54,17],[55,17,56,17],[58,2,59,2]]}
[]
[]
[null,"PROPERTY ADDRESS","(ADDRESS HERE)",null,null,null,null,null,null,null,null,null,null,null,null,null,null,null,"DATE OF EXCEL SPREADSHEET COMPLETION",null,"(DATE HERE)"]
[]
[]
[]
[null,"CITY FILE NUMBER","(FILE NUMBER HERE)",null,null,null,null,null,null,null,null,null,null,null,null,null,null,null,"FOR SITE PLAN CONTROL APPLICATION ONLY"]
[]
[]
[]
[]
["CITY OF MARKHAM SUSTAINABILITY ASSESSMENT TOOL (SCORING TOOL)",null,null,null,null,null,null,null,null,null,null,null,null,null,null,null,null,"Final Score:",{"$f":"SUM(S14:S131)","v":0}]
["INDICATOR #","INDICATOR TITLE","INDICATOR DESCRIPTION","Qualifier","Qualifier question","OBC/Not OBC","Residential only","Mixed-Use","Indus/Comm/Inst only","Block Plan","Draft Plan","Site Plan","Level","Points","Points Achieved","Metric Grouping (Metrics that are related, yellow highlighted cells are metrics that are mutually exclusive - red highlighted are metrics where applicants can get anywhere up to that number)","AVAILABLE PERFORMANCE TARGETS","PERFORMANCE TARGET ACHIEVED"," POINTS AWARDED","VERIFICATION DOCUMENT","LETTER OF COMMITMENT","Verification Staff","NOTES","COMMENTS"]
["BUILT ENVIRONMENT"]
["BE-1","Proximity to Amenities","To encourage development within and near existing amenities, create more walkable communities, and reduce auto dependency.","No",null,"Not OBC","Yes","Yes","Yes","Yes","Yes","Yes","Good",1,null,"Group A","Good\n• Three or more amenities are within 800 metres (equivalent to a 10 minute walk) of 75% of dwelling units. \n\nGreat\n• Three or more amenities are within 400 metres (equivalent to a 5 minute walk) of 75% of dwelling units.",null,{"$f":"IF(R15=\"Good\",1,IF(R15=\"Great\",3,0))","v":0},null,"No","Urban Designer","References-"]
[null,null,null,"No",null,null,"Yes","Yes","Yes","Yes","Yes","Yes","Great",2,null,"Group A"]
["BE-2","Mixed-Use Development","To support locating housing,\nservices, recreation, schools, shopping, jobs, work space, and other amenities on the same lot or block to facilitate wise use of land, make it easier for people to walk or cycle to these destinations, and reduce auto dependency.","Yes",null,"Not OBC","Yes","Yes","No","Yes","Yes","Yes","Good",1,null,"Group B","Good\n• Where it does not conflict with and is not already a requirement set out in the local Official Plan, Regional Official Plan, or Provincial \n   Plan or policy, a mix of uses is provided on the same lot or block.",null,{"$f":"IF(R17=\"Good\",1,0)","v":0},null,"No","Development Planner","this should be a qualifier metric. How to handle this question where mixed use is not supported/feasible?\n-screen it so it only applies to mixed used column and not residential"]
["BE-3","Housing Diversity-Ownership\n(1st of 3 categories for available points)","To encourage a range of housing options and facilitate aging in place.","No",null,"Not OBC","Yes","Yes","No","Yes","Yes","Yes","Good",2,null,"Group C","Good\n• At least 10% of affordable/low income or purpose-built rental housing is provided.",null,{"$f":"IF(R18=\"Good\",2,0)","v":0},null,"No","Development Planner"]
[null,"Housing Diversity- Housing Type\n(2nd of 3 categories for available points)",null,"No",null,"Not OBC","Yes","Yes","No","Yes","Yes","Yes","Good",1,null,"Group D","Good\n• Two of the housing typologies listed are provided: Single Detached, Semi Detached, Townhouse, Mid-rise, High-rise, and/or additional \n   dwelling unit within a single detached, semi detached or townhouse dwelling (e.g. second unit, secondary suite).\n\nGreat\n• Three of the housing typologies listed are provided: Single Detached, Semi Detached, Townhouse, Mid-rise, High-rise, and/or \n   additional dwelling unit within a single detached, semi detached or townhouse dwelling (e.g. second unit, secondary suite).\n\nExcellent\n• Four or more of the housing typologies listed are provided: Single Detached, Semi Detached, Townhouse, Mid-rise, High-rise, and/or \n   additional dwelling unit within a single detached, semi detached or townhouse dwelling (e.g. second unit, secondary suite).",null,{"$f":"IF(R19=\"Good\",1,IF(R19=\"Great\",2,IF(R19=\"Excellent\",3,0)))","v":0},null,"No","Development Planner","have this as metric but not as mandatory; or just upgrade it to  great metric so it is not mandatory;\nremove mid and high rise development; only apply to low rise;\nexempt appplications at grade with retail facing along street frontage"]
[null,null,null,"No",null,null,"Yes","Yes","No","Yes","Yes","Yes","Great",1,null,"Group D",null,null,null,null,null,"Development Planner"]
[null,null,null,"No",null,null,"Yes","Yes","No","Yes","Yes","Yes","Excellent",1,null,"Group D",null,null,null,null,null,"Development Planner"]
[null,"Housing Diversity - Accommodation\n(3rd of 3 categories for available points)",null,"No",null,null,"Yes","Yes","No","Yes","Yes","Yes","Good",1,null,"Group E","Good\n• Two accommodation types are provided: Live-work, Purpose-Built Rental, Studio, 1 bedroom, and/or 2 or more bedrooms.\n\nGreat\n• Three or more accommodation types are provided:  Live-work, Purpose-Built Rental, Studio, 1 bedroom, and/or 2 or more bedrooms.",null,{"$f":"IF(R22=\"Good\",1,IF(R22=\"Great\",2,0))","v":0},null,"No","Development Planner","not every development is appropriate for this"]
[null,null,null,"No",null,null,"Yes","Yes","No","Yes","Yes","Yes","Great",1,null,"Group E",null,null,null,null,null,"Development Planner"]
["BE-5","Cultural Heritage Conservation\n(1st of 4 categories for available points)","To conserve cultural heritage resources, including built heritage resources (listed or designated), cultural heritage landscapes (listed or designated), and archaeological resources.","Yes","Does your site contain a cultural heritage resource?",null,"Yes","Yes","Yes","Yes","Yes","Yes","Good",1,null,"Group J","Good\n• Where a cultural heritage resource will be relocated, it will be moved to a visually prominent location within the subject development site.",null,{"$f":"IF(R24=\"Good\",1,0)","v":0},null,"No","Heritage Planner"]
[null,"Cultural Heritage Conservation\n(2nd of 4 categories for available points)",null,"Yes","Does your site contain a cultural heritage resource?",null,"Yes","Yes","Yes","No","Yes","Yes","Good",1,null,"Group K","Good\n• Where reusable materials from a cultural heritage resource are being removed, a portion will be salvaged and reused on site.",null,{"$f":"IF(R25=\"Good\",1,0)","v":0},null,"No","Heritage Planner"]
[null,"Cultural Heritage Conservation\n(3rd of 4 categories for available points)",null,"Yes","Does your site contain a cultural heritage resource?",null,"Yes","Yes","Yes","Yes","Yes","Yes","Great",2,null,"Group I","Great\n• A portion of the cultural heritage resource is retained, and the integrity of the cultural heritage resource is conserved. ",null,{"$f":"IF(R26=\"Great\",2,0)","v":0},null,"No","Heritage Planner"]
[null,"Cultural Heritage Conservation\n(4th of 4 categories for available points)",null,"Yes","Does your site contain a cultural heritage resource?",null,"Yes","Yes","Yes","Yes","Yes","Yes","Excellent",3,null,"Group H","Excellent\n• The cultural heritage resource is conserved, and no elements that contribute to its cultural heritage value are demolished, removed, or \n   relocated (excluding temporary removal for restoration purposes).",null,{"$f":"IF(R27=\"Excellent\",3,0)","v":0},null,"No","Heritage Planner","Need confirmation from partners of how to interperet cultural heritage resources. Assume Group H and Group I should be merged (i.e. choose Great or Excellent), and Group J and Group K are additional points."]
["BE-6","Enhancing Urban Tree Canopy and Shaded Walkways and Sidewalks\n(1st of 2 categories for available points)","To provide street trees and urban tree canopy that create a more pleasant pedestrian environment and mitigate the urban heat island effect. Street trees provide ecosystem services and health benefits.","No",null,null,"Yes","Yes","Yes","No","No","Yes","Good",1,null,"Group L","Good\n• Trees will shade at least 50% of the walkway/sidewalk lengths within 10 years.\n\nGreat\n• Trees will shade at least 75% of the walkway/sidewalk lengths within 10 years.",null,{"$f":"IF(R28=\"Good\",1,IF(R28=\"Great\",2,0))","v":0},null,"No","Landscape Architect / Technologist","Need more flexibility for overall site; \n- also issues with walkway on northside"]
[null,null,null,"No",null,null,"Yes","Yes","Yes","No","No","Yes","Great",1,null,"Group L",null,null,null,null,null,"Landscape Architect / Technologist"]
[null,"Enhancing Urban Tree Canopy and Shaded Walkways and Sidewalks\n(2nd of 2 categories for available points)",null,"No",null,null,"Yes","Yes","Yes","No","No","Yes","Good",1,null,"Group N","Good\n• Landscape plan will provide tree canopy for at least 40% of site within 10 years and the minimum soil volume is provided for each tree.\n\nExcellent\n• Landscape plan will provide tree canopy for at least 50% of site within 10 years and the minimum soil volume is provided for each tree.",null,{"$f":"IF(R30=\"Good\",3,IF(R30=\"Excellent\",5,0))","v":0},null,"No","Landscape Architect / Technologist","This one should have qualifiers, street trees may be existing so applicant won't be providing any\n- most sites don't have both sides of the street; change language on street frontage side only of site"]
[null,null,null,"No",null,null,"Yes","Yes","Yes","No","No","Yes","Excellent",2,null,"Group N",null,null,null,null,null,"Landscape Architect / Technologist","For Group N, Guidebook notes that  it is not applicable to Markham."]
["BE-7","Salt Management ","To reduce the use of salt and its negative impacts on water bodies, soils, wildlife, buildings, and vehicles. Reducing salt use also helps protect the natural environment from salt exposure.","No",null,null,"Yes","Yes","Yes","No","No","Yes","Good",2,null,"Group O","Two of the following measures are provided: \n• 2 to 4% grade throughout all outdoor parking lots to ensure proper drainage and limit refreezing, \n• Use of salt-tolerant species of vegetation in areas that will receive meltwater, \n• Use of trees as windbreaks around the site perimeter, \n• Heated or covered walkways near building entrances. \nAND\n• Providing well-planned, designated snow storage area(s) to ensure meltwater drains as intended in the site design. ",null,{"$f":"IF(R32=\"Good\",2,0)","v":0},null,"No","Landscape Architect / Technologist"]
["BE-8","Carshare and Carpool Parking","To encourage carpooling and reduce dependence on single-occupant vehicle trips. Carpooling contributes to GHG emission reduction, less air pollution, less congestion, and improved social connections.","No",null,null,"Yes","Yes","Yes","No","No","Yes","Good",1,null,"Group P","Good (residential or non-residential)\n• Dedicate 3% of parking spaces on-site to carpooling and/or carshare (does not apply to compact cars). Provide preferred parking for \n   these vehicles by incorporating signage and/or pavement markings.\n\nGreat (residential or non-residential)\n • Dedicate 5% of parking spaces on-site to carpooling and/or carshare (does not apply to compact cars). Provide preferred parking for \n   these vehicles by incorporating signage and/or pavement markings.\n\n*Refer to Guidebook for associated notes",null,{"$f":"IF(R33=\"Good\",1,IF(R33=\"Great\",2,0))","v":0},null,"Yes","Landscape Architect / Technologist","smaller townhouse, does it work for carshare?\nThis should be a qualifier Metric for higher density projects\nCarpooling, break into two metrics: for residential, mid and high rise; and ICIs "]
[null,null,null,"No",null,null,"Yes","Yes","Yes","No","No","Yes","Great",1,null,"Group P",null,null,null,null,null,"Landscape Architect / Technologist"]
["BE-9","Surface Parking Footprint","To promote efficient use of land and to support on-street retail and pedestrian-oriented built environments. Surface parking can block access and visibility to homes and businesses. Minimizing or carefully locating surface parking can result in more pedestrian-friendly and valuable streetscapes.","No",null,null,"Yes","Yes","Yes","No","No","Yes","Good",1,null,"Group Q","Good\n• All surface parking on site is located at the side or rear of buildings.\n\nGreat\n• Less than 15% of the total developable area is provided to parking at grade and is located at the rear or side of buildings.\n\nExcellent\n• All new on-site parking is provided below grade or in structured parking, and no surface parking is provided. ",null,{"$f":"IF(R35=\"Good\",1,IF(R35=\"Great\",2,IF(R35=\"Excellent\",3,0)))","v":0},null,"No","Landscape Architect / Technologist","Qualifer Metric? Not all have surface parking; or minimum size / threshold that would trigger this"]
[null,null,null,"No",null,null,"Yes","Yes","Yes","No","No","Yes","Great",2,null,"Group R",null,null,null,null,null,"Landscape Architect / Technologist","Rows 25, 26 and 27 are combined for the purposes of the algorithm."]
[null,null,null,"No",null,null,"Yes","Yes","Yes","No","No","Yes","Excellent",3,null,"Group S",null,null,null,null,null,"Landscape Architect / Technologist"]
["BE-10","Electric Vehicle Charging Stations\n(Non-residential uses)","To facilitate the use of electric vehicles.","No",null,null,"Yes","Yes","Yes","No","Yes","Yes","Good",3,null,"Group T","Good\n• Electric vehicle supply equipment (EVSE) is provided to serve 10% of parking spaces.\n\nGreat\n• Electric vehicle supply equipment (EVSE) is provided to serve 20% of parking spaces.",null,{"$f":"IF(R38=\"Good\",3,IF(R38=\"Great\",5,0))","v":0},null,"Yes","Landscape Architect / Technologist","Distinguished res from non-res\npreference for providing rough-ins? In projects with structued parking. Don't know which parking spaces will have EV vehicles. Parkiing spaces are owned and purchased so better to provide flexibility of where owners can install charging equipment\nLowrise residential also require for rough-ins for all units vs chargin for only limited number. Don't know which units will have EVs/\nICIs for charging stations?\nCheck Transportation comments"]
[null,"Electric Vehicle Charging Stations\n(Residential mid- and high-rise)",null,"No",null,null,"Yes","Yes","Yes","No","Yes","Yes","Great",2,null,"Group T","Good\n• For mid-rise and high-rise residential uses with shared parking areas, at least 50% of the parking spaces are designed and constructed \n   to permit future EVSE installation (e.g. rough-in).\n\nExcellent\n• For mid-rise and high-rise residential uses with shared parking areas, 100% of the parking spaces are designed and constructed to \n   permit future EVSE installation (e.g. rough-in).",null,{"$f":"IF(R39=\"Good\",2,IF(R39=\"Excellent\",5,0))","v":0},null,"Yes","Landscape Architect / Technologist"]
[null,"Electric Vehicle Charging Stations\n(Low rise residential)",null,"No",null,null,"Yes","Yes","Yes","No","Yes","Yes","Excellent",2,null,"Group U","Excellent\n• For low-rise residential with dedicated parking in a private garage, 100% of the parking spaces are designed and constructed to permit \n   future EVSE installation (e.g. rough in).",null,{"$f":"IF(R40=\"Excellent\",5,0)","v":0},null,"Yes","Landscape Architect / Technologist","For purposes of the Scoring Tool, need to separate scoring for (1) mid and high rise, (2) low rise, and (3) non-residential uses."]
["MOBILITY"]
["M-4","Promote Walkable Streets","To encourage walking through the provision of safe and comfortable street environments. Walkable streets reduce the dependence on vehicles, improve safety, enhance connectivity, and are an important component for healthy and complete communities.","No",null,null,"Yes","Yes","Yes","Yes","Yes","Yes","Good",2,null,"Group Y","Good (Site Plans)\n• For site plans, provide/ extend /upgrade continuous sidewalks or multi-use trails on public streets where supported by the municipality. \n   Points do not apply where an existing sidewalk will remain. \n\nGood (Plans of Subdivision)\n • Provide/extend continuous sidewalks or multi-use trails on both sides of public streets where supported by the municipality.",null,{"$f":"IF(R42=\"Good\",2,0)","v":0},null,"No","Urban Designer","Qualifer Metric - need to filter out applications where sidewalks are mandatory\n-also many applications only control on side of street, so maybe make it specifc only to subdivisions?"]
["M-5","Pedestrian Amenities","To promote the provision of amenities that contribute to a positive pedestrian experience and ensure destinations in communities are connected through convenient, safe, and accessible pedestrian connections. Walkable connections improves the physical and mental wellbeing of residents of all ages and abilities, and helps to reduce dependence on motor vehicle use, and limit air pollution and GHG emissions.","No",null,null,"Yes","Yes","Yes","No","No","Yes","Good",1,null,"Group Z","Good\n• Pedestrian connections are provided between building entry and other destinations on the site and to destinations on adjacent \n   properties or public streets.  \nAND\n• 1 type of pedestrian amenity is consistently included along on-site connections.\n\nGreat\n • A pedestrian connection is provided through the site and serves as a midblock connection between two adjacent properties and or \n   public streets.",null,{"$f":"IF(R43=\"Good\",1,IF(R43=\"Great\",2,0))","v":0},null,"No","Landscape Architect / Technologist","Either or both of these performance targets needs to be recognized. Therefore, nested \"IF\" statements in Excel cannot be used. Rather, include each performance target with either Yes or No."]
[null,null,null,"No",null,null,"Yes","Yes","Yes","No","No","Yes","Great",1,null,"Group Z",null,null,null,null,null,"Landscape Architect / Technologist"]
["M-6","Bicycle Parking\n(1st of 3 categories for available points)","To facilitate cycling and reduce dependence on motor vehicle use.","No",null,null,"Yes","Yes","Yes","No","No","Yes","Good",1,null,"Group AA","Good\n• Bicycle parking spaces are provided at a rate 20% higher than municipal standards/guidelines.\n\nGreat\n• Bicycle parking spaces are provided at a rate 50% higher than municipal standards/guidelines.",null,{"$f":"IF(R45=\"Good\",1,IF(R45=\"Great\",2,0))","v":0},null,"No","Urban Designer","\"Good\" and \"Great\" targets will need to first state the municipal standard. The two \"Excellent\" targets will need to be separate \"Yes\" or \"No\" options."]
[null,null,null,"No",null,null,"Yes","Yes","Yes","No","No","Yes","Great",1,null,"Group AA",null,null,null,null,null,"Urban Designer"]
[null,"Bicycle Parking\n(2nd of 3 categories for available points)",null,"No",null,null,"Yes","Yes","Yes","No","No","Yes","Excellent",2,null,"Group BB","Excellent\n• Short-term bicycle parking is located within 25 metres of building entrance and is weather protected if outdoors.\n• Long-term bicyle parking is located in a secured area at grade or with dedicated elevator access at all levels of parking",null,{"$f":"IF(R47=\"Excellent\",2,0)","v":0},null,"No","Urban Designer"]
[null,"Bicycle Parking\n(3rd of 3 categories for available points)",null,"Yes","Does your proposal include non-residential landuses?",null,"Yes","Yes","Yes","No","No","Yes","Excellent",1,null,"Group CC","Excellent\n• 1 shower and change room are provided per 30 bicycle parking spaces associated with non-residential development.",null,{"$f":"IF(R48=\"Excellent\",1,0)","v":0},null,"No","Urban Designer"]
["M-7","Implementing Trails and Cycling Infrastructure","To implement pedestrian and cycling infrastructure to further promote active forms of transportation. Walking and cycling results in GHG emissions savings and less air pollution. Active transportation also provides health benefits.","No",null,null,"Yes","Yes","Yes","Yes","Yes","Yes","Good",1,null,"Group DD","Good\n• Implement the objectives of the applicable municipal Active Transportation Master Plan and/or Trails/Pathways Master Plan by \n   implementing the improvements as part of the development.",null,{"$f":"IF(R49=\"Good\",1,0)","v":0},null,"No","Transportation Planner / Traffic Planning Technologist","Add qualifier Metric. Review ATP for any objectives that may be achievable for sites without any infrastructure"]
["M-8","Active Transportation Network","To promote active transportation through the provision of public multi-purpose trails/paths and cycling infrastructures. Cycling results in carbon savings and less air pollution. It also provides health benefits.","No",null,null,"Yes","Yes","Yes","Yes","Yes","Yes","Good",2,null,"Group EE","Good\n100% of residents/jobs are within 400 metres of:\n• An existing public multi-use trail or cycling infrastructure; or \n• A municipally approved public multi-use trail or cycling infrastructure (identified in a Council approved trail/cycling master plan, but not \n  yet constructed); or\n• A proposed public multi-use trail or cycling infrastructure that is proposed within the development.",null,{"$f":"IF(R50=\"Good\",2,0)","v":0},null,"No","Transportation Planner / Traffic Planning Technologist"]
["M-9","Distance to Public Transit","To promote and support alternative transportation modes to personal automotive vehicle use. Transit-oriented communities reduce vehicle-kilometres traveled and associated emissions, have reduced traffic casualty rates and support walking and cycling which improves community health.","No",null,null,"Yes","Yes","Yes","No","Yes","Yes","Good",1,null,"Group FF","Good\n• The site is within 800 metres walking distance to an existing or planned commuter rail, light rail, bus rapid transit or subway with frequent \n   service.\nOR\n• The site is within 400 metres walking distance to 1 or more existing or planned bus stops with frequent service.\n\nGreat\n• The site is within 400 metres walking distance to an existing or planned commuter rail, light rail, bus rapid transit, or subway with frequent \n   service.\nOR\n• The site is within 200 metre walking distance to 1 or more bus stops with frequent service.",null,{"$f":"IF(R51=\"Good\",1,IF(R51=\"Great\",2,0))","v":0},null,"No","Transportation Planner / Traffic Planning Technologist"]
[null,null,null,"No",null,null,"Yes","Yes","Yes","No","Yes","Yes","Great",1,null,"Group FF",null,null,null,null,null,"Transportation Planner / Traffic Planning Technologist"]
["NATURAL ENVIRONMENT AND OPEN SPACE"]
["NE-1","Tree Conservation","To support the conservation of healthy mature trees and the associated ecological, economic, and healthy benefits. Preserving trees can be a cost-effective method to improve the overall appearance of a community while providing ecological and climate change benefits.","Yes","Does your site contain existing trees?",null,"Yes","Yes","Yes","Yes","Yes","Yes","Good",3,null,"Group II","Good\n• Preserve 25% of mature trees with a DBH ≥20 centimetres in situ on site.\n\nGreat\n• Preserve 50% of mature trees with a DBH ≥20 centimetres in situ on site or preserve 100% of healthy hedgerows in situ on site.",null,{"$f":"IF(R54=\"Good\",3,IF(R54=\"Great\",5,0))","v":0},null,"No","Landscape Architect / Technologist","Some sites will not be able to achieve depending on location of trees (e.g if only 3 trees and they are all in the middle of a small site)"]
[null,null,null,"Yes",null,null,"Yes","Yes","Yes","Yes","Yes","Yes","Great",2,null,"Group II",null,null,null,null,null,"Landscape Architect / Technologist"]
["NE-2","Soil Quantity and Quality for New Trees\n(1st of 2 categories for available points)","To provide soil quantity and quality that enables new trees to thrive. Higher amounts of good quality soil help ensure the success of vegetation.","No",null,null,"Yes","Yes","Yes","No","Yes","Yes","Good",2,null,"Group JJ","Good\n• Provide a minimum of 30 cubic metres of soil for each new tree and a minimum of 1 metre of uncompact soil depth. \n• Where there is a grouping of trees, provide a minimum of 20 cubic metres of soil for each new tree, and a minimum of 1 metre of \n   uncompact soil depth, or equivalent municipal standard.\n\nGreat\n• Provide 25% more than the total soil volume required by municipal standards. ",null,{"$f":"IF(R56=\"Good\",2,IF(R56=\"Great\",4,0))","v":0},null,"No","Landscape Architect / Technologist","for large canopy trees (leave it for UD to interpret)"]
[null,null,null,"No",null,null,"Yes","Yes","Yes","No","Yes","Yes","Great",2,null,"Group JJ",null,null,null,null,"No","Landscape Architect / Technologist"]
[null,"Soil Quantity and Quality for New Trees\n(2nd of 2 categories for available points)",null,"No",null,null,"Yes","Yes","Yes","No","Yes","Yes","Excellent",2,null,"Group KK","Excellent\n• Provide uncompact topsoil layer of tree pits, trenches, or planting beds with the following properties:\n     • Organic matter content of 10 to 15% by dry weight and a pH of 6.0 to 8.0.\n     • A minimum depth of 1 metre, or in accordance with municipal standards, whichever is higher.\n     • Provide adequate drainage.",null,{"$f":"IF(R58=\"Excellent\",2,0)","v":0},null,"No","Landscape Architect / Technologist"]
["NE-3","Healthy Soils","To ensure that new development contains healthy soil quality and quantity to help restore the natural functions of soils and vegetation to help ensure the soil is appropriate for the proposed plantings. Limiting disturbance of healthy soil horizons and maintain soil structure, as well as to support biological communities (above-ground and below-ground).","No",null,null,"Yes","Yes","Yes","No","Yes","Yes","Good",1,null,"Group LL","Great\n• A minimum topsoil depth of 300 millimetres is provided across the entire site (excluding paved surfaces).",null,{"$f":"IF(R59=\"Great\",2,0)","v":0},null,"Yes","Landscape Architect / Technologist","Good target no applicable to Markham as it is below municipal standards. Only Great target applies."]
[null,null,null,"No",null,null,"Yes","Yes","Yes","No","Yes","Yes","Great",1,null,"Group LL",null,null,null,null,null,"Landscape Architect / Technologist"]
["NE-4","Connection to Natural Heritage","To provide connections to nature and green spaces to benefit human health through proxmity or access, and to minimize the amount of the natural heritage that is backlotted by residential development.","Yes","Does your site contain or abut a natural heritage feature?",null,"Yes","Yes","Yes","Yes","Yes","Yes","Good",2,null,"Group MM","Good\n• Provide physical public connections (such as public access blocks, single loaded roads, parks, sidewalks, etc.) to 50% of the length of \n   the natural heritage system that abuts the proposed development (interface between development and natural heritage systems).\n\nGreat\n• Provide physical public connections (such as public access blocks, single loaded roads, parks, sidewalks, etc.) to 75% or more of the \n   length of the natural heritage system that abuts the proposed development (interface between development and natural heritage \n   systems).",null,{"$f":"IF(R61=\"Good\",2,IF(R61=\"Great\",4,0))","v":0},null,"No","Landscape Architect / Technologist","I think all the Natural Heritage Enhancements will have to be separate \"Yes\" or \"No\" options."]
[null,null,null,"Yes",null,null,"Yes","Yes","Yes","Yes","Yes","Yes","Great",2,null,"Group MM",null,null,null,null,null,"Landscape Architect / Technologist"]
["NE-5","Natural Heritage System Enhancements","To improve natural heritage system, particularly with respect to wildlife habitat and/or ecological functions.","Yes",null,null,"Yes","Yes","Yes","Yes","Yes","Yes","Good",1,null,"Group NN","Good\n• Provide and implement Woodland Management Plan within and/or abutting the subject lands, where not already required by the \n   municipality.",null,{"$f":"IF(R63=\"Good\",1,0)","v":0},null,"No","Environmental Planner","I think all the Natural Heritage Enhancements will have to be separate \"Yes\" or \"No\" options. Confirm with municipal partners if there is agreement that 10 points are available for this Metric."]
[null,"Natural Heritage System Enhancements",null,"Yes",null,null,"Yes","Yes","Yes","Yes","Yes","Yes","Good",1,null,"Group OO","Good\n• Provide and implement an Invasive Species Management Plan for a natural heritage feature, where not already required by the \n   municipality.",null,{"$f":"IF(R64=\"Good\",1,0)","v":0},null,"No","Environmental Planner","I think all the Natural Heritage Enhancements will have to be separate \"Yes\" or \"No\" options."]
[null,"Natural Heritage System Enhancements",null,"Yes",null,null,"Yes","Yes","Yes","Yes","Yes","Yes","Good",1,null,"Group PP","Good\n• Provide habitat structure(s) for species at risk, such as bird structures, butterfly boxes, and hibernaculum.",null,{"$f":"IF(R65=\"Good\",1,0)","v":0},null,"No","Environmental Planner","I think all the Natural Heritage Enhancements will have to be separate \"Yes\" or \"No\" options."]
[null,"Natural Heritage System Enhancements",null,"Yes",null,null,"Yes","Yes","Yes","Yes","Yes","Yes","Great",2,null,"Group QQ","Great\n• Provide a form of natural heritage restoration/enhancement that provides a net ecological gain, above municipal requirements.",null,{"$f":"IF(R66=\"Great\",2,0)","v":0},null,"No","Environmental Planner","I think all the Natural Heritage Enhancements will have to be separate \"Yes\" or \"No\" options."]
[null,"Natural Heritage System Enhancements",null,"Yes",null,null,"Yes","Yes","Yes","Yes","Yes","Yes","Excellent",5,null,"Group RR","Excellent\n• Design and deliver a linear continuous/uninterrupted naturalized corridor, not already identified as a natural heritage feature in the Official \n   Plan or through technical studies, which creates a functional linkage between at least two natural heritage features.\n",null,{"$f":"IF(R67=\"Excellent\",5,0)","v":0},null,"No","Environmental Planner","I think all the Natural Heritage Enhancements will have to be separate \"Yes\" or \"No\" options."]
["NE-6","Supporting Pollinators","To provide landscape materials that support and provide habitat for pollinators (e.g. birds, bees, butterflies). Without pollinators, much of the food we eat and the natural habitats we enjoy would not exist. Pollinators are under increasing stress due to habitat loss, invasive species, diseases, pesticides, and climate change.","No",null,null,"Yes","Yes","Yes","No","Yes","Yes","Good",1,null,"Group SS","Good\n• Native plants that support pollinators make up 25% of total quantity of plants proposed on the landscape plan.\n\nGreat\n• Native plants that support pollinators make up 50% of the total quantity of plants proposed on the landscape plan.",null,{"$f":"IF(R68=\"Good\",1,IF(R68=\"Great\",2,0))","v":0},null,"Yes","Landscape Architect / Technologist"]
[null,null,null,"No",null,null,"Yes","Yes","Yes","No","Yes","Yes","Great",1,null,"Group SS",null,null,null,null,null,"Landscape Architect / Technologist"]
["NE-7","Dedicated Fruit/Vegetable Garden Space","To promote grown food, improve physical and mental wellbeing, and to encourage social interaction.","No",null,null,"Yes","Yes","Yes","No","Yes","Yes","Good",2,null,"Group TT","Good\n\n• For multi-unit residential developments:\n      • Provide garden space that is equal to 25 square metres (or 250 square feet) or 5% of the rooftop amenity area or 5% ground floor\n        landscaped area (whichever is greater).\n      • Provide a shed for gardening equipment storage.\n      • Provide a water source for the garden space. \n\nFor ground-oriented residential developments:\n• With yards\n      • For each residential lot, provide a raised garden bed that is at least 12 inches (30 centimetres) tall, 4 inches (1.2 metres) wide, and \n        6 feet (1.8 metres) long. \n• Without yards\n      • For each unit, provide container gardens that can accommodate 15 gallons (57 litres) of soil and are at least 12 inches (30 \n        centimetres) deep.",null,{"$f":"IF(R70=\"Good\",2,0)","v":0},null,"Yes","Landscape Architect / Technologist","should not apply to ICIs\n\nLikley need three separate entries for the Scoring Tool: (1) Multi-res, (2) low rise with a yard, and (3) low rise without a yard. These will then be \"Yes\" or \"No\" options."]
["NE-8","Park Access","To promote visual and physical access to public parks and to make it easier for people of all ages and abilities to integrate physical activity and social interaction as part of their daily activity.","Yes","Does your proposal include or abut any parks?",null,"Yes","Yes","Yes","Yes","Yes","Yes","Good",3,null,"Group UU","Good\n• Provide 2 or more road frontages for each park (e.g. urban square, parkette, and neighborhood park).\n\nGreat\n• Provide 3 or more road frontages for all parks. \n",null,{"$f":"IF(R71=\"Good\",3,IF(R71=\"Great\",6,0))","v":0},null,"No","Urban Designer"]
[null,null,null,"Yes",null,null,"Yes","Yes","Yes","Yes","Yes","Yes","Great",3,null,"Group UU",null,null,null,null,null,"Urban Designer"]
["NE-9","Stormwater Quantity and Balance","To support a treatment-train approach to stormwater management, emphasizing source and conveyance controls to promote infiltration, evaporation, and/or re-use of runoff and/or rainwater. Managing stromwater at the early stages of the treatment-train can provide more resilient communities and reduce risks of downstream flooding and erosion.","No",null,null,"Yes","Yes","Yes","Yes","Yes","Yes","Good",2,null,"Group VV","Good\n• Retain runoff volume from the 10 millimetres rainfall event on public and private sites.\n\nGreat\n• Retain runoff volume from the 15 millimetres rainfall event on public and private sites.\n\nExcellent\n• Retain runoff volume from the 25 millimetres rainfall event on public and private sites.",null,{"$f":"IF(R73=\"Good\",2,IF(R73=\"Great\",4,IF(R73=\"Excellent\",7,0)))","v":0},null,"No","Environmental Engineer / Technologist"]
[null,null,null,"No",null,null,"Yes","Yes","Yes","Yes","Yes","Yes","Great",2,null,"Group VV",null,null,null,null,null,"Environmental Engineer / Technologist"]
[null,null,null,"No",null,null,"Yes","Yes","Yes","Yes","Yes","Yes","Excellent",3,null,"Group VV",null,null,null,null,null,"Environmental Engineer / Technologist"]
["NE-10","Stormwater Quality","To protect receiving water bodies from water quality degradation that may result from development and urbanization. Controlling the quality of stormwater can provide for improved quality of receiving water bodies, resulting in fewer algae blooms, longer swimming seasons, and a variety of other other ecological benefits.","No",null,null,"Yes","Yes","Yes","Yes","Yes","Yes","Good",1,null,"Group WW","Good\n• Remove over 80% of TSS (Total Suspended Solids) from all runoff leaving the site during a 25 millimetre rainfall event (based on the \n   post-development level of imperviousness).\n\nGreat\n• Remove over 90% of TSS from all runoff leaving the site during a 25 millimetre rainfall event (based on the post-development level of \n   imperviousness).",null,{"$f":"IF(R76=\"Good\",1,IF(R76=\"Great\",5,0))","v":0},null,"No","Environmental Engineer / Technologist"]
[null,null,null,"No",null,null,"Yes","Yes","Yes","Yes","Yes","Yes","Great",4,null,"Group WW",null,null,null,null,null,"Environmental Engineer / Technologist"]
["NE-11","Potable Water Use","To facilitate the conservation and efficient use of potable water.","Yes","Does your proposal include irrigation systems?",null,"Yes","Yes","Yes","No","No","Yes","Good",2,null,"Group XX","Good\n• Reduce potable water used for irrigation by 50%, compared to a mid-summer baseline case.\n\nGreat\n• Drought-tolerant plants make up 75% of the total quantity of plants proposed on the landscape plan and no potable water is used for \n   irrigation.",null,{"$f":"IF(R78=\"Good\",2,IF(R78=\"Great\",6,0))","v":0},null,"Yes","Development Planner","Confirm with the municipal partners if the \"Great\" score is 2 additional points for a total of 4, or 4 additional points for a total of 6."]
[null,null,null,"No",null,null,"Yes","Yes","Yes","No","No","Yes","Great",4,null,"Group XX",null,null,null,null,null,"Development Planner"]
["NE-12","Multi-purpose Stormwater Management","To enhance the public use value of these facilities.","Yes","Does your proposal include a stormwater management pond?",null,"Yes","Yes","Yes","No","Yes","Yes","Good",1,null,"Group ZZ","Good\n• Introduce beautification measures/amenities that beautify stormwater management ponds (e.g. public art, interpretive signage).",null,{"$f":"IF(R80=\"Good\",1,0)","v":0},null,"No","Landscape Architect / Technologist"]
["INFRASTRUCTURE AND BUILDINGS (IB)"]
["IB-1","Buildings Designed and/or Certified under Accredited \"Green\" Rating System\n(Single third-party certification)","To recognize leadership and efforts to achieve independent third-party green certification systems that demonstrates high sustainability performance. Sustainability certification systems provide recognizable and verified certifications demonstrating to the public a high degree of sustainability performance is being achieved.","No",null,"OBC","Yes","Yes","Yes","No","Yes","Yes","Good",7,null,"Group AAA","Good\n• Includes 1 to 7 green buildings enrolled in one or more recognized third party standards. 1 to 7 available points (1 point per building, \n   total 7 points available).\n\nFor the performance target, select the number of buildings enrolled in a recognized third-party green rating system as listed in the Guidebook (maximum of 7).",null,{"$f":"R82","v":0},null,"Yes","Development Planner","One point per building, up to seven points; confirm this is filtered out by OBC metrics requirement\n\nthe Green Rating System performance targets will all need to be separate."]
[null,"Buildings Designed and/or Certified under Accredited \"Green\" Rating System\n(Multiple third-party certifications)",null,"No",null,null,"Yes","Yes","Yes","No","Yes","Yes","Excellent",7,null,"Group AAA","Excellent\n• If a building is registered for more than one green rating system certification (1 additional point per building).\n\nFor the performance target, select the number of buildings enrolled in more than one recognized third-party green rating system as listed in the Guidebook (maximum of 7).",null,{"$f":"R83","v":0},null,"Yes","Development Planner","One point per building, up to seven points.\nConfirm with municipal partners if this allows for 14 total points if 7 or more buildings have more than one certification system."]
[null,"Buildings Designed and/or Certified under Accredited \"Green\" Rating System\n(LEED ND)",null,"No",null,null,"Yes","Yes","Yes","No","Yes","Yes","Good",2,null,"Group BBB","• The development will achieve LEED ND v4. The performance target is 'Yes' or 'No'.",null,{"$f":"IF(R84=\"Yes\",2,0)","v":0},null,"Yes","Development Planner","If this is captured in base/bronze score, then should we increase this to great target? LEED ND is duplication of metrics in many ways"]
[null,"Buildings Designed and/or Certified under Accredited \"Green\" Rating System\n(One Planet Living)",null,"No",null,null,"Yes","Yes","Yes","No","Yes","Yes","Excellent",4,null,"Group CCC","• The development will achieve One Planning Living rating. The performance target is 'Yes' or 'No'.",null,{"$f":"IF(R85=\"Yes\",4,0)","v":0},null,"Yes","Development Planner","Confirm with municipal partners if LEED ND is additional 2 points (possible total of 16 points) and OPL is additional 4 points (total of 20 points), or additional points from OPL allows for total of 18 points."]
["IB-2","Accessibility for Multi-Unit Dwellings","To enable a wide spectrum of people to live within and access new buildings, regardless of ability. To provide accessibility to occupants beyond the Ontario Building Code (OBC), which mandates a barrier-free path of travel is included in 15% of Multi-Residential Units as per OBC.","No",null,"OBC","Yes","Yes","No","No","No","Yes","Good",2,null,"Group DDD","Good\n• For multi unit-residential buildings design a minimum of 25% of the Dwelling Units (DU) to achieve accessibility features required in the \n   Ontario Building Code.\n\nGreat\n• For multi unit-residential buildings, design a minimum of 35% of the Dwelling Units (DU) to achieve basic accessibility features required \n   in the Ontario Building Code.",null,{"$f":"IF(R86=\"Good\",2,IF(R86=\"Great\",3,0))","v":0},null,"Yes","Development Planner"]
[null,null,null,"No",null,null,"Yes","Yes","No","No","No","Yes","Great",1,null,"Group DDD",null,null,null,null,"Yes","Development Planner"]
["IB-3","Building Accessibility (Barrier Free Entry/Egress)","To enable a wide spectrum of people to access new buildings, regardless of age or ability. Inclusive buildings and neighborhoods expand the number of potential users, \nthereby increasing value. They also enable more diversity in age of occupants and visitors","No",null,"OBC","Yes","Yes","Yes","No","No","Yes","Good",1,null,"Group EEE","Good\n• 50% of emergency exits above the OBC requirements are designed to be barrier free.\n\nGreat\n• 100% of all entries and exits above the OBC requirements are designed to be barrier free.",null,{"$f":"IF(R88=\"Good\",1,IF(R88=\"Great\",2,0))","v":0},null,"No","Development Planner"]
[null,null,null,"No",null,null,"Yes","Yes","Yes","No","No","Yes","Great",1,null,"Group EEE",null,null,null,null,"No","Development Planner"]
["IB-4","Embodied Carbon of Building Materials: Supplementary Cementitious Materials\n(1st of 2 categories for available points)","To increase the growing awareness of the importance of addressing the embodied carbon and other GHG emissions associated with building materials. Materials can account for significant impact from their production, and reductions are available through selection and design. Often, lower impact materials are also more cost-effective.","No",null,"OBC","Yes","Yes","Yes","No","No","Yes","Good",1,null,"Group FFF","Good\n• All concrete on site will have a minimum of 20% Supplementary Cementitious Materials (SCMs).",null,{"$f":"IF(R90=\"Good\",1,0)","v":0},null,"Yes","Development Planner"]
[null,"Embodied Carbon of Building Materials: Supplementary Cementitious Materials\n(2nd of 2 categories for available points)",null,"No",null,null,"Yes","Yes","Yes","No","No","Yes","Great",1,null,"Group FFF","Good\n• 40% of concrete on site will have a minimum of 40% Supplementary Cementitious Materials (SCMs).",null,{"$f":"IF(R91=\"Good\",1,0)","v":0},null,"Yes","Development Planner","Confirm with municipal partners if the Great target is 40% of concrete with 40% Supplementary Cementitious Materials (SCMs), and the remainder of concrete with at least 20% SCMs."]
["IB-5","Embodied Carbon of Building Materials: Life Cycle Assessment","To increase the growing awareness of the importance of addressing the embodied carbon and other GHG emissions associated with building materials.  Materials can account for significant impact from their production, and reductions are available through selection and design. Often, lower impact materials are also more cost-effective.","Yes","Does your proposal include a large/complex building, four storeys, and taller and greater than 600 square metres in building area?",null,"Yes","Yes","Yes","No","No","Yes","Great",1,null,"Group GGG","Great\n• Report embodied carbon emissions for the structural and envelope materials for every Part 3 building on site. \n• To develop the report, use lifecycle assessment software such as Athena Impact Estimator for Buildings Life Cycle Assessment (LCA) \n   software (or equivalent). Consider three methods to reduce the embodied carbon content of each building reviewed.\n• Note Part 3 residential buildings are large and complex buildings, four storeys and taller and greater than 600 square metres in the \n   building area.\n\nExcellent\n• Commit to employing one or more carbon reduction strategy that would result in a 10% reduction in embodied carbon of the design.",null,{"$f":"IF(R92=\"Great\",1,IF(R92=\"Excellent\",5,0))","v":0},null,"No","Development Planner","What are the carbon reduction strategies?"]
[null,null,null,"No",null,null,"Yes","Yes","Yes","No","No","Yes","Excellent",4,null,"Group GGG",null,null,null,null,null,"Development Planner"]
["IB-6","Embodied Carbon of Building Materials: Material Efficient Framing","To increase the growing awareness of the importance of addressing the embodied carbon and other GHG emissions associated with building materials.","Yes","Does your proposal include a building of less than six storeys?",null,"Yes","Yes","Yes","No","Yes","Yes","Great",3,null,"Group GGG","Great\n• For all lowrise wood-framed construction, use at least 3 of the following advanced framing measures will be use:\n      • Pre-cut framing packages\n      • Engineered Floor Joist\n      • Single Top-Plates\n      • Two Stud Corners\n      • Stud spacing greater than 406 mm (16”) on any storey,\n      • Ceiling joist spacing greater than 406 mm (16”) on any storey,\n      • Floor joist spacing greater than 406 mm (16”) on any storey. All corners have no more than 2 studs.",null,{"$f":"IF(R94=\"Great\",3,0)","v":0},null,"Yes","Development Planner"]
["IB-7","Heat Island Reduction: Non-Roof","To reduce ambient surface temperatures and reduce the urban heat island effect.","No",null,null,"Yes","Yes","Yes","No","No","Yes","Good",2,null,"Group HHH","Good\n• For both Residential and Non-Residential Development:\n    • Use one or more of the following strategies to treat 50% of the site’s non-roof hardscaping:\n         • High albedo paving materials with an initial solar reflectance of at least 0.33 or SRI of 29.\n         • Open grid paving with at least 50% perviousness.\n         • Shade from existing or new tree canopy within 10 years of landscape installation.\n         • Shade from architectural structures that are vegetated or have an initial solar reflectance of at least 0.33 at installation or an SRI of \n            29.\n         • Shade from structures with energy generation.\nOR\n• For non-residential development only: \n      • Have a minimum of 75% of at-grade parking spaces under a cover.\n\nGreat\n• Use one or more of the strategies presented in the Good Target to treat 75% of the site’s non-roof hardscaping.",null,{"$f":"IF(R95=\"Good\",2,IF(R95=\"Great\",3,0))","v":0},null,"No","Landscape Architect / Technologist"]
[null,null,null,"No",null,null,"Yes","Yes","Yes","No","No","Yes","Great",1,null,"Group HHH",null,null,null,null,null,"Landscape Architect / Technologist"]
["IB-8","Heat Island Reduction: Roof\n(Cool Roof - 1st of 2 categories for available points)","To reduce ambient surface temperatures and reduce the urban heat island effect.","No",null,null,"Yes","Yes","Yes","No","No","Yes","Great",2,null,"Group III","Great\n• Cool roof installed for 100% of the available roof space ",null,{"$f":"IF(R97=\"Great\",2,0)","v":0},null,"No","Landscape Architect / Technologist","Confirm with municipal partners how to calculate available roof space when considering a green roof and solar PV taking up roof space."]
[null,"Heat Island Reduction: Roof\n(Green Roof - 2nd of 2 categories for available points)",null,"No",null,null,"Yes","Yes","Yes","No","No","Yes","Great",4,null,"Group JJJ","Great\n• Green roof installed for 50% of the available roof space \n\nExcellent\n• Green roof installed for 75% of the available roof space",null,{"$f":"IF(R98=\"Great\",4,IF(R98=\"Excellent\",6,0))","v":0},null,"No","Landscape Architect / Technologist"]
[null,null,null,"No",null,null,"Yes","Yes","Yes","No","No","Yes","Excellent",2,null,"Group JJJ",null,null,null,null,null,"Landscape Architect / Technologist"]
["IB-9","Controlling Solar Gain\n(1st of 2 categories for available points)","To control solar heat gains through east and west facing windows.","No",null,null,"Yes","Yes","Yes","No","Yes","Yes","Good",1,null,"Group KKK","\nGood\n• For a low-rise development:\n      • Provide exterior shading by planting at least one deciduous tree (50 to 70 dbh) per lot on the east and west side of each low density \n        residential dwelling.",null,{"$f":"IF(R100=\"Good\",1,0)","v":0},null,"No","Landscape Architect / Technologist","Need Metric Qualifier as it is for low-rise; and added flexibility for tree location"]
[null,"Controlling Solar Gain\n(2nd of 2 categories for available points)",null,"No",null,null,"Yes","Yes","Yes","No","Yes","Yes","Great",2,null,"Group LLL","Great\n• Provide exterior shading for all east, west and shouth facing windows.",null,{"$f":"IF(R101=\"Great\",2,0)","v":0},null,"No","Landscape Architect / Technologist","Can \"Good\" and \"Great\" targets be additive for low rise res developments, if installed?"]
["IB-10","Solar Readiness\n(1st of 2 categories for available points)","To encourage the use of renewable energy and reduce reliance on fossil fuel-based energy. Solar energy can provide cost-effective methods to reduce energy use and will have strong climate change benefits.",null,null,null,null,null,null,null,null,null,null,null,null,null,"Good\n• For greenfield sites that provide ground-oriented development, 100% of dwellings in the project are designed for solar readiness.",null,{"$f":"IF(R102=\"Good\",3,0)","v":0},null,"Yes"]
[null,null,null,"No",null,null,"Yes","Yes","Yes","No","Yes","Yes","Great",3,null,"Group MMM","Great\n• All buildings in the project are designed for solar readiness.",null,{"$f":"IF(R103=\"Great\",3,0)","v":0},null,"Yes","Development Planner","Should this be a \"Good\" target? Keep as \"Great\" if already coded that way in the Brampton scoring tool."]
[null,"Solar Readiness\n(2nd of 2 categories for available points)",null,"No",null,null,"Yes","Yes","Yes","No","Yes","Yes","Great",2,null,"Group NNN","Great\n• 1% of the total energy is generated on-site by renewable energy sources.\n\nExcellent\n• More than 1% of the total energy is generated on-site by renewable energy sources, up to 5%. (1 additional point per percent increase \n   up to 5 additional points)",null,{"$f":"IF(R104=\"1% of the total energy\",2,IF(R104=\"Greater than 1% but less than 2%\",3,IF(R104=\"Greater than 2% but less than 3%\",4,IF(R104=\"Greater than 3% but less than 4%\",5,IF(R104=\"Greater than 4% but less than 5%\",6,IF(R104=\"5% or more of the total energy\",7,0))))))","v":0},null,"Yes","Development Planner","The \"Great\" score may need to start at 3 points."]
[null,null,null,"No",null,null,"Yes","Yes","Yes","No","Yes","Yes","Excellent",1,null,"Group NNN",null,null,null,null,null,"Development Planner"]
[null,null,null,"No",null,"OBC","Yes","Yes","Yes","No","Yes","No","Good",3,null,"Group OOO",null,null,null,null,null,"Development Planner","Need Metric Qualifier for low rise"]
["IB-11","Energy Strategy\n(1st of 2 categories for available points)","To encourage the early consideration and incorporation of sustainable design features in the planning process relating to improved building energy efficiency, carbon reduction, and resilience, as well as to take advantage of district-scale opportunities in the case of multi-building developments.","No",null,null,"Yes","Yes","Yes","Yes","Yes","Yes","Great",3,null,"Group PPP","Great\n• Develop an Energy Strategy for the proposed development which includes the following as applicable:\n      • High-level energy analysis using archetype modelling or benchmarking data to estimate the overall energy consumption and GHG \n        emissions associated with the development.\n      • Identify and evaluate opportunities to reduce energy use intensity (EUI) and greenhouse gas emissions intensity (GHG) emissions \n        intensities down to a net-zero ready level of performance (e.g. the Excellent Target) through various measures such as more \n        efficient building form and massing, orientation, improved building envelope performance, highly efficient HVAC systems, heat \n        recovery, and lighting solutions. \n      • Analysis of low-carbon energy solutions and on-site renewable energy generation potential that can be incorporated into the \n        development, such as rooftop photovoltaic (PV), geo-exchange systems, high-efficiency combined heat and power (CHP), thermal \n        energy stores, and sewer water heat recovery. \n      • Identify and evaluate opportunities for backing power systems and passive design features that will improve the resilience of \n        buildings to area-wide power outages.\n• For multi-unit development, also conduct the following:\n      • In the case of multi-building development proposals or in intensification areas identified by the municipality, investigate the feasibility \n        of shared energy solutions such as the development of low-carbon thermal energy networks or connection to planned or existing \n        district energy systems, and identify the required provisions to be district energy-ready.",null,{"$f":"IF(R107=\"Great\",3,0)","v":0},null,"No","Environmental Planner","Confirm scoring with municipal partners and Guidebook. Guidebook notes 6 ponts for Energy Strategy and additional 6 points for commitment to lower EUI (yet says total of 11 points)."]
[null,"Energy Strategy\n(2nd of 2 categories for available points)",null,"No",null,null,"Yes","Yes","Yes","Yes","Yes","Yes","Excellent",6,null,"Group PPP","Excellent\n• In addition to developing an Energy Strategy, commit to meeting an energy use intensity (EUI) and greenhouse gas emissions intensity \n   (GHGI) target for the site that strives towards a near-net zero emissions level of performance as agreed upon with the City.\n• Develop a zero-carbon transition plan that lays out the pathway towards achieving carbon neutrality in the future through a variety of \n   design measures, such as providing the necessary infrastructure for full building electrification and avoidance of on-site combustion of \n   fossil fuels.",null,{"$f":"IF(R108=\"Excellent\",6,0)","v":0},null,"Yes","Environmental Planner"]
["IB-12","Building Energy Efficiency, Greenhouse Gas Reduction, and Resilience\n\nPart 9 Residential Buildings (3 storeys or less and less than 600 m2 in gross floor area).","To promote buildings that are designed to be energy-efficient with reduced operating costs and greenhouse gas emissions associated with building operations, while improving the thermal comfort of occupants and enhancing building resilience. Well-designed buildings that are energy-efficient can improve indoor and outdoor air quality and reduce greenhouse gas emissions. [Select from one of the three building types]","No",null,null,"Yes","Yes","Yes","No","No","Yes","Great",6,null,"Group RRR","Design, construct and certify (or label) to:",null,{"$f":"IF(R109=\"Design to EnergyStar V17\",3,IF(R109=\"EnergyStar V17 Certified\",7,IF(R109=\"CHBA Net Zero Ready Certified\",13,IF(R109=\"CHBA Net Zero Certified or Passive House Certified\",21,0))))","v":0},null,"Yes","Environmental Planner","Update performance targets in the Guidebook to reflect the Council endorsement of a pathway to net zero energy buildings."]
[null,"Building Energy Efficiency, Greenhouse Gas Reduction, and Resilience\n\nPart 3 Buildings – Multi-Unit Residential, Office and \nRetail (more than 3 storeys or more than 600 m2 in gross floor area).",null,"No",null,null,"Yes","Yes","Yes","No","No","Yes","Excellent",10,null,"Group SSS","Develop a whole building energy model, and design and construct the building to achieve the following whole building performance metrics:",null,{"$f":"IF(R110=\"TEUI between 170 to 136; TEDI between 70 to 51; GHGI between 20 to 16\",3,IF(R110=\"TEUI between 135 to 101; TEDI between 50 to 31; GHGI between 15 to 11\",7,IF(R110=\"TEUI between 100 to 76; TEDI between 30 to 16; GHGI between 10 to 6\",13,IF(R110=\"TEUI of 75 or less; TEDI of 15 or less; GHGI of 5 or less\",21,0))))","v":0},null,"Yes","Environmental Planner"]
[null,"Building Energy Efficiency, Greenhouse Gas Reduction, and Resilience\n\nAll Other Part 3 Buildings",null,null,null,null,null,null,null,null,null,null,null,null,null,null,"All Other Part 3 Buildings\nDevelop a whole-building energy model, and design and construct the building to achieve the following improvements in energy efficiency over the Ontario Building Code (OBC) SB-10, Division 3 (2017) reference building.",null,{"$f":"IF(R111=\"15% improvement over OBC\",3,IF(R111=\"25% improvement over OBC\",7,IF(R111=\"37% improvement over OBC\",13,IF(R111=\"50% improvement over OBC\",21,0))))","v":0},null,"Yes"]
[null,"Building Energy Efficiency, GHG Reduction, and Resilience\n\nCommissioning\n(1st of 3 additional categories for available points)","To promote buildings that are designed to be energy-efficient with reduced operating costs and greenhouse gas emissions associated with building operations, while improving the thermal comfort of occupants and enhancing building resilience. Well-designed buildings that are energy-efficient can improve indoor and outdoor air quality and reduce greenhouse gas emissions.","No",null,null,"Yes","Yes","Yes","No","No","Yes","Great",3,null,"Group TTT","Great\n• Conduct best practice commissioning, per the requirements referenced in LEED BD+C v4 Fundamental Commissioning and \n   Verification pre-requisite.\n\n(Building commissioning is a systematic process of verifying that the various building sub-systems such as building envelope, mechanical (HVAC), plumbing and lighting systems are constructed and operational per the project requirements and design intent.)",null,{"$f":"IF(R112=\"Great\",3,0)","v":0},null,"Yes","Environmental Planner"]
[null,"Building Energy Efficiency, GHG Reduction, and Resilience\n\nAir Tightness Testing\n(2nd of 3 additional categories for available points)",null,"No",null,null,"Yes","Yes","Yes","No","No","Yes","Excellent",4,null,"Group UUU","Excellent\n• Airtightness Testing\n• Conduct a whole-building air leakage test to improve the quality and airtightness of the building envelope",null,{"$f":"IF(R113=\"Excellent\",4,0)","v":0},null,"Yes","Environmental Planner"]
[null,"Building Energy Efficiancy, GHG Reduction and Resilience\n\nConnection to Markham District Energy\n(3rd of 3 additional categories for available points)",null,null,null,null,null,null,null,null,null,null,null,null,null,null,"Excellent\n• Connect to Markham District Energy (MDE)\n• MDE is implementing a plan to decarbonize its network, which will allow connected buildings to achieve lower greenhouse gas \n   emissions intentity (GHG)",null,{"$f":"IF(R114=\"Excellent\",4,0)","v":0},null,"Yes"]
["IB-13","Rainwater and Greywater Use","To reduce potable water use for interior building functions.","No",null,"OBC","Yes","Yes","Yes","No","No","Yes","Good",1,null,"Group WWW","Good\n• Rainwater or greywater is captured on-site and used for exterior uses (e.g. landscape irrigation).\n  • Buildings designed for rainwater and/or greywater use readiness (e.g. plumbing infrastructure rough-ins or dedicated cistern space for \n     rainwater or greywater use or greywater irrigation that may be connected in the future are included in the building).\n\nGreat\n• Greywater Use for Interior Functions\n  • Greywater is captured on site, treated, and used for toilet and urinal flushing, as well as priming flood drains within a home.\nOR\n• Rainwater Use for Interior Functions\n  • Rainwater is captured on site and used for toilet and urinal flushing.",null,{"$f":"IF(R115=\"Good\",1,IF(R115=\"Great\",4,0))","v":0},null,"Yes","Landscape Architect / Technologist"]
[null,null,null,"No",null,null,"Yes","Yes","Yes","No","No","Yes","Great",3,null,"Group WWW",null,null,null,null,null,"Landscape Architect / Technologist"]
["IB-14","Back-Up Power\n\n(Rough-ins - 1st of 3 categories for available points)","To encourage the provision of back-up power that enables the functioning of key utilities/building functions during power failures resulting from extreme weather events.","No",null,"OBC","Yes","Yes","Yes","No","Yes","Yes","Good",1,null,"Group XXX","Good\n• Provide rough-ins to allow for the installation of external generators/auxiliary power supply at a later date.",null,{"$f":"IF(R117=\"Good\",1,0)","v":0},null,"Yes","Development Planner"]
[null,"Back-Up Power\n\n(Refuge area - 2nd of 3 categories for available points)",null,"Yes","Does your proposal contain a multi unit building?",null,"Yes","Yes","No","No","Yes","Yes","Good",1,null,"Group YYY","Good\n• For mid-rise and high-rise buildings, provide a refuge area with heating, cooling, lighting, potable water, and power available for 72 \n   hours.",null,{"$f":"IF(R118=\"Good\",1,0)","v":0},null,"Yes","Development Planner"]
[null,"Back-Up Power\n\n(72 hrs of back-up power - 3rd of 3 categories for available points)",null,"No",null,"OBC","Yes","Yes","Yes","No","Yes","Yes","Great",3,null,"Group ZZZ","Great\n• Provide 72 hours of back-up power to essential building systems.",null,{"$f":"IF(R119=\"Great\",3,0)","v":0},null,"Yes","Development Planner","Need Metric Qualifier for midrise and highrise"]
["IB-15","Extreme Wind Protection for Ground-Oriented Development","To increase the resistance of homes to the impacts of high wind events, and make them more resilience to the impacts of climate change.","No",null,"OBC","Yes","Yes","Yes","No","Yes","Yes","Good",2,null,"Group AAAA","Good\n• Roof to Wall Connections:\n• Tie roof rafters, roof trusses or roof joists to load-bearing wall framing in a manner that will resist a factored uplift load of 3 kN. This \n   measure requires adequate connection of the top plate to the supporting wall studs, combined with adequate continuous vertical load \n   path. If continuous structural wall sheathing (see Measure A.2.3) is not applied, then a top-to-bottom inspection to address all potential \n   weak links in the continuous vertical load path using additional tires, straps or related measures should be applied.\nAND\n• When engineered connectors are used, builders should request that truss manufacturers supply appropriate roof-to-wall connections \n   along with trusses.\n\n• Stud to Sill Plate Connection\n• Installation of metal straps or connectors to connect lower storey wall studs to the sill plate.",null,{"$f":"IF(R120=\"Good\",2,0)","v":0},null,"Yes","Development Planner","Need Metric Qualifier for low rise"]
["IB-16","Sub-Metering of Energy and Water\n(Thermal)","To include sub-metering that allows measurement of individual unit consumption, which helps residents understand how their behaviour drives energy costs, and motivates change in behaviour, often resulting in reductions in energy consumption.","Yes","Does your proposal contain a multi unit building?",null,"Yes","Yes","Yes","No","No","Yes","Good",2,null,"Group BBBB","Good\n• Buildings are designed to include thermal energy meters for each tenant in multi-tenant residential, commercial/retail buildings.",null,{"$f":"IF(R121=\"Good\",2,0)","v":0},null,"Yes","Development Planner","Discuss if IB-16 can be scored using nested IF statements or \"Yes\"/\"No\" options."]
[null,"Sub-Metering of Energy and Water\n(Water)",null,"Yes",null,null,"Yes","Yes","Yes","No","No","Yes","Good",2,null,"Group CCCC","Good\n• Buildings are designed to include water meters for each tenant in multi-tenant residential, commercial/retail buildings.",null,{"$f":"IF(R122=\"Good\",2,0)","v":0},null,"Yes","Development Planner","Guidebook has 3 categories, not just two shown in this Excel file."]
[null,"Sub-Metering of Energy and Water\n(Electricity)",null,null,null,null,null,null,null,null,null,null,null,null,null,null,"Good\n• Install electricity meters for all energy end-uses that represent more than 10% of the building's total energy consumption, following the \n   requirements laid out in LEED v4 Reference Guide Advanced Energy Metering credit.",null,{"$f":"IF(R123=\"Good\",2,0)","v":0},null,"Yes"]
["IB-17","Light Pollution Reduction","To reduce nighttime glare and light trespass from the building and the site. Light pollution can be perceived as an inefficient use of energy in addition to its negative impacts on neighbors and night time animals.","No",null,null,"Yes","Yes","Yes","No","Yes","Yes","Good",1,null,"Group DDDD","Good\n• All exterior fixtures are Dark Sky Compliant.",null,{"$f":"IF(R124=\"Good\",1,0)","v":0},null,"No","Development Planner"]
["IB-18","Bird-Friendly Design","To reduce the incidents of bird collisions and provide an urban environment where birds can thrive. The built environment can have strong negative impacts on birds. Design and system selection can result in fewer bird collisions and deaths.","No",null,null,"Yes","Yes","Yes","No","No","Yes","Good",2,null,"Group EEEE","Good\n• A combination of Bird-Friendly Design strategies on at least 85% of contiguous glass area greater than 2 square metres within the first \n  16 metres of the building above-grade (including interior courtyards) and above green roofs is applied. \nAND\n• The remaining 15% of glazed windows do not need to be treated unless the glazing is larger than 2 square metres or in close proximity \n   to open spaces, a green roof or a natural heritage feature.\n\n• Bird-Friendly Design Strategies may include: \n      • Visual patterns on glass,\n      • Window films,\n      • Fenestration patterns,\n      • Angled glass downwards,\n      • Reducing night sky lighting.\n      • Visual markers provided on the glass of proposed buildings with spacing no greater than 10 centimetres x 10 centimetres.",null,{"$f":"IF(R125=\"Good\",2,0)","v":0},null,"No","Urban Designer","Need Metric Qualifier for mid and high rise residential and ICI"]
[null,"Bird-Friendly Design\n(Subdivisions)",null,"No",null,null,"Yes","Yes","Yes","No","No","Yes","Good",2,null,"Group FFFF","Good\n• For Subdivisions, apply Bird-Friendly Design strategies for ground-oriented residential development that is adjacent to natural heritage \n   systems and open spaces.",null,{"$f":"IF(R126=\"Good\",2,0)","v":0},null,"Yes","Urban Designer","Need Metric Qualifier for low rise next to natural heritage\n\nWhat are bird-friendly design strategies for ground related adjacent to natural heritage?"]
["IB-19","Solid Waste","To promote waste reduction and diversion of materials from landfills. A reduction in waste can be a very cost-effective method for material savings and results in fewer contributions to landfills and lower carbon emissions due to savings in materials.",null,null,null,null,null,null,null,null,null,null,null,null,null,"Good (1 point)\n• Medium and High Density Residential: Provide 25 square metres of flexible waste storage space for bulky items and to accommodate \n   infrastructure related to special diversion programs (ex. textile recycling, electronic waste, etc.).",null,{"$f":"IF(R127=\"Good\",1,0)","v":0},null,"No"]
[null,"Solid Waste",null,"Yes",null,null,"Yes","Yes","Yes","No","No","Yes","Good",1,null,"Group IIII","Great (2 points)\n• Medium and High Density Residential: Design the development with one or more centralized waste disposal rooms that are equipped \n   with access control measures requiring users to “fob” to unlock the access door(s) and outfit each disposal room with a surveillance \n   camera to deter dumping or improper disposal of waste.",null,{"$f":"IF(R128=\"Great\",2,0)","v":0},null,"No","Urban Designer"]
[null,"Solid Waste",null,"Yes",null,null,"Yes","Yes","No","No","No","Yes","Great",1,null,"Group JJJJ","Great (2 points)\n• Medium and High Density Residential: Equip the building’s waste chute system with access control measures requiring users to “fob” to \n   unlock garbage, recycling and organic disposal chutes and outfit each waste chute room with a surveillance camera to deter dumping or \n   improper disposal of waste.",null,{"$f":"IF(R129=\"Great\",2,0)","v":0},null,"No","Urban Designer"]
["INNOVATION (IN)"]
["I-1 ","Innovation","To encourage applicants to achieve innovative performance. Innovation strategies must demonstrate a comprehensive approach, have significant, measurable environmental benefits, and be better than standard practice.","No",null,null,"Yes","Yes","Yes","Yes","Yes","Yes","Exceptional",10,null,"Group KKKK","Exceptional\nUp to a total of 10 points based on the measurable sustainability benefit provided (additional points be awarded at the discretion of the municipality).\n",null,null,"Other",null,"Other","Point value is determined on a case by case basis\nMaximum point value that could be awarded is 10 points"]
[null,null,null,null,null,null,null,null,null,null,null,null,null,null,null,null,null,"Final Score:",{"$f":"SUM(S14:S131)","v":0}]

{"sheet":"IB-12 Targets","index":2,"n_rows":16,"n_cols":8,"rows_kept":16,"cut":false,"hidden":true,"merged":[]}
["THIS WORKSHEET WILL BE HID OR LOCKED"]
[]
["IB-12 Target Description"]
[null,null,null,null,null,"OTHER PART 3 BUILDINGS"]
[null,"Total Energy Use Intensity (TEUI)","Thermal Energy Demand Intensity (TEDI)"," Greenhouse Gas Emissions Intensity (GHGI)"]
[null,"(kWh/m2/yr)","(kWh/m2/yr)","(kgCO2/m2/yr)",null,null,"GOOD","15% improvement in energy efficiency "]
["GOOD",170,70,20,null,null,"GREAT","25% improvement in energy efficiency "]
["GREAT",135,50,15,null,null,"EXCELLENT","37% improvement in energy efficiency "]
["EXCELLENT",100,30,10,null,null,"EXCEPTIONAL","50% improvement in energy efficiency "]
["EXCEPTIONAL",75,15,5]
[null,null,null,null,null,"PART 9 LOW RISE RESIDENTIAL BUILDINGS"]
[]
[null,null,null,null,null,null,"GOOD","Design to EnergyStar V17"]
[null,null,null,null,null,null,"GREAT","EnergyStar V17 Certified"]
[null,null,null,null,null,null,"EXCELLENT","CHBA Net Zero Ready Certified"]
[null,null,null,null,null,null,"EXCEPTIONAL","CHBA Net Zero Certified or Passive House Certified"]

{"sheet":"DropDownLists","index":3,"n_rows":241,"n_cols":17,"rows_kept":241,"cut":false,"hidden":true,"merged":[]}
["Document","Typical Verifier","THIS WORKSHEET WILL BE HID OR LOCKED",null,null,null,null,null,null,null,null,null,"TEUI","TEDI","GHGI",null,"Other Part 3 Buildings"]
["Metric BE-1/M-3","Development Planner",null,null,null,null,null,null,null,null,null,null,"kW/m2/yr","kW/m2/yr","KgCO2/m2/yr"]
[null,"Urban Designer","Yes","Good",null,null,"Good","1%",null,"EnergyStar V17 Certified",null,null,"170 to 136","70 to 51","20 to 16",null,"15% improvement over OBC"]
["Planning Justification Report","Urban Design Landscape / Streetscape Reviewers","No","Great",null,null,"Excellent","2%",null,"CHBA Net Zero Ready Certified",null,null,"135 to 101","50 to 31","15 to 11",null,"25% improvement over OBC"]
["Urban Design Brief","Development Planner",null,"Excellent",null,null,null,"3%",null,"CHBA Net Zero Certified",null,null,"100 to 76","30 to 16","10 to 6",null,"37% improvement over OBC"]
["Other","Heritage Planner",null,"Exceptional",null,null,null,"4%",null,"Passive House Certified",null,null,"75 or less","15 or less","5 or less",null,"50% improvement over OBC"]
[null,"Environmental Planner",null,null,null,null,null,"5% or Higher"]
["Metric BE-2/M-4","Environmental Engineer / Technologist"]
[null,"Transportation Planner / Traffic Planning Technologist",null,null,null,null,null,null,null,null,null,null,"TEUI between 170 to 136; TEDI between 70 to 51; GHGI between 20 to 16"]
["Draft Plan of Subdivision","Policy Planner",null,null,null,null,null,null,null,null,null,null,"TEUI between 135 to 101; TEDI between 50 to 31; GHGI between 15 to 11"]
["Site Plan","Operations Staff",null,null,null,null,null,null,null,null,null,null,"TEUI between 100 to 76; TEDI between 30 to 16; GHGI between 10 to 6"]
["Other","Other",null,"Metric BE-4/BE-10/M-6/NE-2/NE-5",null,null,"Metric IB-1: Green Rating Systems",null,null,null,null,null,"TEUI of 75 or less; TEDI of 15 or less; GHGI of 5 or less"]
[]
["Metric BE-3",null,null,"Excellent",null,null,1]
[null,null,null,null,null,null,2,null,null,null,null,null,"Design to EnergyStar V17"]
["Planning Justification Report",null,null,"Metric BE-5/NE-5/IB-11/IB-12",null,null,3,null,null,null,null,null,"EnergyStar V17 Certified"]
["Draft Plan of Subdivision",null,null,null,null,null,4,null,null,null,null,null,"CHBA Net Zero Ready Certified"]
["Site Plan",null,null,"Great",null,null,5,null,null,null,null,null,"CHBA Net Zero Certified or Passive House Certified"]
["Other",null,null,null,null,null,6]
[null,null,null,"Excellent",null,null,7]
["Metric BE-4"]
[]
["Planning Justification Report",null,null,"Metric IB-5, IB-8",null,null,"Metric IB-10"]
["Community Design Guidelines"]
["Other",null,null,"Great",null,null,"1% of the total energy"]
[null,null,null,"Excellent",null,null,"Greater than 1% but less than 2%"]
["Metric BE-5",null,null,null,null,null,"Greater than 2% but less than 3%"]
[null,null,null,"Metric NE-3/IB-6/IB-8/IB-9/IB-10/IB-14",null,null,"Greater than 3% but less than 4%"]
["Cultural Heritage Impact Assessment",null,null,null,null,null,"Greater than 4% but less than 5%"]
["Heritage Conservation Plan",null,null,"Great",null,null,"5% or more of the total energy"]
["Other"]
[null,null,null,"Metric BE-9"]
["Metric BE-6/BE-7/IB-7"]
[null,null,null,"Good"]
["Landscape Plans",null,null,"Great"]
["Other",null,null,"Excellent"]
[]
["Metric BE-8"]
[]
["Transportation Impact Study"]
["Transportation Demand Management Plan"]
["Site Plan"]
["Letter of Commitment"]
["Other"]
[]
["Metric BE-9-IB-3"]
[]
["Site Plan"]
["Other"]
[]
["Metric BE-10"]
[]
["Site Plan"]
["Floor Plans"]
["Letter of Commitment"]
["Other"]
[]
["Metric M-1"]
[]
["Draft Plan of Subdivision"]
["Other"]
[]
["Metric M-2"]
[]
["Planning Justification Report"]
["Draft Plan of Subdivision"]
["Other"]
[]
["Metric M-5"]
[]
["Elevation Drawings"]
["Floor Plans"]
["Landscape Plans"]
["Other"]
[]
["Metric M-6"]
[]
["Site Plan"]
["Floor Plans"]
["Other"]
[]
["Metric M-7/M-8"]
[]
["Transportation Impact Study"]
["Transportation Demand Management Plan"]
["Other"]
[]
["Metric M-9"]
[]
["Transportation Impact Study"]
["Transportation Demand Management Plan"]
["Urban Design Brief"]
["Other"]
[]
["Metric NE-1"]
[]
["Arborist Report/Tree Inventory Preservation Plan"]
["Other"]
[]
["Metric NE-2"]
[]
["Soil Volume Plans"]
["Landscape Plans"]
["Other"]
[]
["Metric NE-3/NE-6/NE-7/IB-13"]
[]
["Landscape Plans"]
["Letter of Commitment"]
["Other"]
[]
["Metric NE-4"]
[]
["Draft Plan of Subdivision"]
["Site Plan"]
["Landscape Plans"]
["Other"]
[]
["Metric NE-5"]
[]
["Environmental Impact Study"]
["Woodlot Management Plan"]
["Natural Heritage Restoration Plan"]
["Invasive Species Management Plan"]
["Landscape Plans"]
["Other"]
[]
["Metric NE-8"]
[]
["Urban Design Brief"]
["Site Plan"]
["Landscape Plans"]
["Other"]
[]
["Metric NE-9/NE-10"]
[]
["Functional Servicing Report"]
["Stormwater Management Plan"]
["Other"]
[]
["Metric NE-11"]
[]
["Landscape Plans"]
["Planting Plans"]
["Letter of Commitment"]
["Other"]
[]
["Metric NE-12"]
[]
["Functional Servicing Report"]
["Stormwater Management Plan"]
["Landscape Plans"]
["Other"]
[]
["Metric IB-1"]
[]
["Letter of Commitment"]
["Signed Partnership Agreement"]
["Other"]
[]
["Metric IB-2"]
[]
["Letter of Commitment"]
["Site Plan"]
["Other"]
[]
["Metric IB-4/IB-6/IB-10/IB-15"]
[]
["Letter of Commitment"]
["Other"]
[]
["Metric IB-5"]
[]
["Site Plan"]
["Life Cycle Assessment Report"]
["Other"]
[]
["Metric IB-8"]
[]
["Elevation Drawings"]
["Roof Plans"]
["Landscape Plans"]
["Other"]
[]
["Metric IB-9"]
[]
["Elevation Drawings"]
["Landscape Plans"]
["Other"]
[]
["Metric IB-11"]
[]
["Energy Strategy Report"]
["Letter of Commitment"]
["Other"]
[]
["Metric IB-12"]
[]
["Letter of Commitment"]
["Energy Model Report"]
["Other"]
[]
["Metric IB-14"]
[]
["Letter of Commitment"]
["Floor Plans"]
["Other"]
[]
["Letter of Commitment"]
["Other"]
[]
["Metric IB-16"]
[]
["Letter of Commitment"]
["Electrical and Mechanical Single Line Diagrams"]
["Metering Plan"]
["Other"]
[]
["Letter of Commitment"]
["Other"]
[]
["Metric IB-17"]
[]
["Elevation Drawings"]
["Landscape Plans"]
["Photometric Plans"]
["Other"]
[]
["Metric IB-18"]
[]
["Elevation Drawings"]
["Other"]
[]
["Letter of Commitment"]
["Other"]
[]
["Metric IB-19"]
[]
["Site Plan"]
["Floor Plans"]
["Other"]